[Event "Summer Prague Open-A 2022"]
[Site "Prague"]
[Date "2022.08.05"]
[Round "1.1"]
[White "Chrz, Pavel"]
[Black "Zanan, Evgeny"]
[Result "0-1"]
[ECO "B28"]
[WhiteElo "1986"]
[BlackElo "2521"]
[Annotator "TA"]
[PlyCount "68"]
[EventDate "2022.08.05"]
[EventType "swiss"]
[EventCountry "CZE"]
[SourceTitle "playchess.com"]
[Source "ChessBase"]
[SourceQuality "1"]
[TimeControl "40/5400+30:1800+30"]

{[%evp 9,68,58,69,49,58,52,65,58,72,48,51,37,27,0,12,-97,-91,-87,-39,-53,-62,-55,-26,-39,-41,-55,-47,-60,-58,-68,-61,-61,-62,-128,-118,-127,-108,-182,-163,-160,-170,-329,-339,-368,-377,-341,-327,-304,-346,-387,-333,-587,-561,-792,-790,-6133,-5638,-29989,-29990,-29990,-29986]} 1. e4 {[%emt 0:00:08]} c5 {[%emt 0:00:09]} 2. Nf3 {[%emt 0:00:19]} a6 {[%emt 0:00:19]} 3. c3 {[%emt 0:00:18]} d6 {[%emt 0:00:50]} 4. d4 {[%emt 0:01:09]} Qc7 {[%emt 0:03:02]} 5. Bd3 {[%emt 0:02:11]} g6 {[%emt 0:01:11]} 6. Be3 {[%emt 0:01:34] B28: Sicilian: 2 Nf3 a6 (O'Kelly Variation).} Bg7 {[%emt 0:00:37]} 7. h3 {[%emt 0:02:30]} Nd7 {[%emt 0:01:59]} 8. O-O {[%emt 0:02:05] White is slightly better.} Ngf6 {[%emt 0:01:31]} 9. Re1 {[%emt 0:06:12]} O-O {[%emt 0:01:21]} 10. Nbd2 {[%emt 0:03:33]} b5 {[%emt 0:08:24] [#]} 11. Nf1 $146 {[%emt 0:07:22]} ({Predecessor:} 11. Rc1 c4 12. Bb1 Bb7 13. Bf4 e5 14. Bh2 h6 15. Nf1 Rad8 16. d5 Ne8 17. g4 {0-1 (34) Schill,W (2147)-Katzir,M (2159) Chess.com INT 2021}) 11... Bb7 {[%emt 0:01:56]} 12. Bf4 {[%emt 0:04:23] [#]} (12. Ng3 $11 {remains equal.}) 12... e5 $1 $17 {[%emt 0:02:24]} 13. Bh2 {[%emt 0:02:45]} Rfe8 {[%emt 0:10:01]} (13... cxd4 $17 14. cxd4 exd4) 14. d5 {[%emt 0:03:09]} c4 {[%emt 0:01:01]} 15. Bc2 {[%emt 0:01:44]} Nc5 {[%emt 0:00:23]} 16. a4 {[%emt 0:06:07]} Reb8 {[%emt 0:05:06]} 17. Qe2 {[%emt 0:16:39]} Bc8 {[%emt 0:02:37]} 18. N1d2 {[%emt 0:07:25]} Bd7 {[%emt 0:01:56][%cal Rb5a4]} 19. axb5 {[%emt 0:08:40]} axb5 {[%emt 0:00:46]} 20. Qe3 {[%emt 0:01:23]} Qc8 {[%emt 0:06:14] Black is more active.} 21. Nxe5 {[%emt 0:14:25]} Rxa1 {[%emt 0:00:58]} 22. Rxa1 {[%emt 0:00:06][%cal Oe5f7] Threatens to win with Nxf7!} dxe5 {[%emt 0:00:08]} 23. Bxe5 {[%emt 0:00:03] [#]} (23. Nf3 $17) 23... Ng4 $1 $19 {[%emt 0:00:09][%mdl 512]} 24. hxg4 {[%emt 0:02:12]} Bxe5 {[%emt 0:00:04][%cal Bg7e5,Be5c7,Bc7b6][%mdl 32]} 25. f4 $2 {[%emt 0:00:24] [#]} (25. g5 {was necessary.}) 25... Bc7 $1 {[%emt 0:04:54]} 26. Nf3 {[%emt 0:02:40]} ({But not} 26. Qxc5 $2 Bb6 27. Qxb6 Rxb6 $19) (26. Kh1 Bb6) 26... Bb6 {[%emt 0:02:41] Hoping for ...Nb3.} 27. Nd4 {[%emt 0:00:11] Prevents Nb3.} Bxg4 {[%emt 0:00:18][%cal Ob5b4]} 28. f5 {[%emt 0:01:31]} Nd3 {[%emt 0:05:53]} 29. Qg5 {[%emt 0:01:05]} Bh5 {[%emt 0:03:24]} 30. Kf1 $2 {[%emt 0:02:11]} (30. f6 {might work better.}) 30... Qc7 {[%emt 0:02:46]} 31. Bxd3 {[%emt 0:00:32]} cxd3 {[%emt 0:02:06]} 32. g4 {[%emt 0:00:42]} Qg3 {[%emt 0:01:16]} 33. f6 {[%emt 0:00:36]} Bxd4 {[%emt 0:00:22]} 34. cxd4 {[%emt 0:00:05]} Bxg4 {[%emt 0:00:10] Weighted Error Value: White=1.00/Black=0.05 (flawless)} 0-1

[Event "Summer Prague Open-A 2022"]
[Site "Prague"]
[Date "2022.08.05"]
[Round "1.2"]
[White "Pap, Gyula"]
[Black "Novotny, David"]
[Result "1-0"]
[ECO "B58"]
[WhiteElo "2481"]
[BlackElo "1958"]
[Annotator "TA"]
[PlyCount "59"]
[EventDate "2022.08.05"]
[EventType "swiss"]
[EventCountry "CZE"]
[SourceTitle "playchess.com"]
[Source "ChessBase"]
[SourceQuality "1"]
[TimeControl "40/5400+30:1800+30"]

{[%evp 23,59,12,10,10,12,15,12,-16,-8,0,22,20,44,37,230,237,225,231,223,243,286,260,265,264,298,344,1104,1136,1113,1111,1085,1106,1083,1065,1427,1296,1795,1639]} 1. e4 {[%emt 0:00:11]} c5 {[%emt 0:01:30]} 2. Nf3 {[%emt 0:00:39]} d6 {[%emt 0:00:11]} 3. d4 {[%emt 0:00:47]} cxd4 {[%emt 0:00:07]} 4. Nxd4 {[%emt 0:00:57]} Nf6 {[%emt 0:00:11]} 5. Nc3 {[%emt 0:00:05]} Nc6 {[%emt 0:00:38]} 6. Be2 {[%emt 0:05:57]} g6 {[%emt 0:01:33]} 7. O-O {[%emt 0:02:21]} Bg7 {[%emt 0:02:24]} 8. Nb3 {[%emt 0:00:12]} O-O {[%emt 0:01:53]} 9. Kh1 {[%emt 0:00:27]} a5 {[%emt 0:04:25]} 10. a4 {[%emt 0:03:06]} Be6 {[%emt 0:03:08]} 11. f4 {[%emt 0:01:59]} Rc8 {[%emt 0:09:01]} 12. Be3 {[%emt 0:02:54]} Nd7 {[%emt 0:09:33] [#]} 13. Bb5 $146 {[%emt 0:17:09] B70: Sicilian Dragon: 6 g3 and 6 Be2 (without a later Be3).} ({Predecessor:} 13. f5 Bxb3 14. cxb3 Nc5 15. Rc1 Re8 16. Bc4 e6 17. fxe6 fxe6 18. Bf4 Be5 19. Nb5 Nxe4 20. Bxe5 Nxe5 21. Bxe6+ Rxe6 22. Qd5 Ng5 23. Nd4 Rxc1 24. Rxc1 Qd7 25. h4 {½-½ (25) Valerga,D (2502)-Fusco,L (2392) Villa Martelli 2008}) 13... Bxb3 {[%emt 0:07:38]} 14. cxb3 {[%emt 0:00:36]} Nc5 15. Bxc5 {[%emt 0:04:16] The position is equal.} dxc5 {[%emt 0:07:04]} 16. e5 {[%emt 0:05:13]} f6 {[%emt 0:12:39]} 17. Qd5+ {[%emt 0:09:07]} Qxd5 {[%emt 0:18:35]} 18. Nxd5 {[%emt 0:00:08] [#] Black must now prevent Bxc6.} Rcd8 $2 {[%emt 0:03:07]} (18... Kh8 $14) 19. Bxc6 $18 {[%emt 0:03:33]} bxc6 {[%emt 0:00:13]} 20. Nxe7+ {[%emt 0:00:23]} Kf7 {[%emt 0:02:37]} 21. Nxc6 {[%emt 0:01:16][%cal Be7c6,Bc6a5,Ba5c4][%mdl 32]} Rd2 {[%emt 0:02:02]} 22. Nxa5 {[%emt 0:19:30]} Rxb2 {[%emt 0:00:50]} 23. Rad1 {[%emt 0:06:15]} fxe5 {[%emt 0:02:55]} 24. fxe5+ {[%emt 0:00:37]} Ke6 $2 {[%emt 0:01:10]} (24... Kg8 25. Nc6 Rxb3) 25. Rd6+ {[%emt 0:00:27] White is clearly winning.} Kxe5 {[%emt 0:01:55]} 26. Nc4+ {[%emt 0:00:07]} Ke4 {[%emt 0:00:10]} 27. Re1+ {[%emt 0:00:07]} Kf4 {[%emt 0:00:53]} 28. Nxb2 {[%emt 0:00:09]} Bxb2 {[%emt 0:00:09]} 29. Rd2 {[%emt 0:01:00] And now Rf2+ would win.} Bd4 {[%emt 0:03:12] [#] Inhibits Rf2+.} 30. Rxd4+ $1 {[%emt 0:00:10] White took control after the opening.  Weighted Error Value: White=0.07 (flawless) /Black=0.49} 1-0

[Event "Summer Prague Open-A 2022"]
[Site "Prague"]
[Date "2022.08.05"]
[Round "1.3"]
[White "Vylicil, Adam"]
[Black "Schmaltz, Roland"]
[Result "1/2-1/2"]
[ECO "A62"]
[WhiteElo "1890"]
[BlackElo "2466"]
[Annotator "TA"]
[PlyCount "75"]
[EventDate "2022.08.05"]
[EventType "swiss"]
[EventCountry "CZE"]
[SourceTitle "playchess.com"]
[Source "ChessBase"]
[SourceQuality "1"]
[TimeControl "40/5400+30:1800+30"]

{[%evp 18,75,18,10,29,13,64,0,0,0,0,0,0,-6,24,32,29,-50,-39,-75,-85,-99,0,0,-10,-56,-56,-79,-71,-81,15,6,4,0,0,0,4,-16,0,2,8,8,34,9,7,0,0,0,0,0,17,20,20,29,45,0,0,0,0,0]} 1. d4 {[%emt 0:00:03]} Nf6 {[%emt 0:00:05]} 2. c4 {[%emt 0:00:04]} e6 {[%emt 0:00:09]} 3. g3 {[%emt 0:00:04]} c5 {[%emt 0:00:08]} 4. d5 {[%emt 0:00:04]} d6 {[%emt 0:00:05]} 5. Nc3 {[%emt 0:01:38]} exd5 {[%emt 0:00:10]} 6. cxd5 {[%emt 0:00:05]} g6 {[%emt 0:00:07]} 7. Bg2 {[%emt 0:00:06]} Bg7 {[%emt 0:00:06]} 8. Nf3 {[%emt 0:00:03]} O-O {[%emt 0:00:10]} 9. O-O {[%emt 0:00:03]} Re8 {[%emt 0:00:10]} 10. Re1 {[%emt 0:00:04]} Na6 {[%emt 0:04:25] A62: Modern Benoni: Fianchetto Variation without early ...Nbd7.} 11. Nd2 {[%emt 0:06:06]} Rb8 {[%emt 0:05:38] [#]} (11... Ng4 $11) 12. e4 $146 {[%emt 0:08:53]} (12. a4 $14) ({Predecessor:} 12. a4 Ng4 13. h3 Ne5 14. f4 Nd7 15. Nb5 Nf6 16. Nxa7 Nb4 17. Nb5 Nfxd5 18. Nc4 {0-1 (54) Narciso Dublan,M (2460)-Conquest,S (2542) Andorra 2002}) 12... Ng4 $11 {[%emt 0:06:31]} 13. h3 {[%emt 0:02:23]} Ne5 {[%emt 0:00:39]} 14. Bf1 {[%emt 0:14:54]} Nb4 {[%emt 0:16:11]} 15. Re3 {[%emt 0:01:36]} f5 {[%emt 0:01:48]} 16. a3 {[%emt 0:07:19]} Na6 {[%emt 0:00:05]} 17. f4 {[%emt 0:06:49]} (17. exf5 $11 Bxf5 18. g4) 17... Nf7 $1 $15 {[%emt 0:00:20]} 18. Nf3 {[%emt 0:02:52]} fxe4 {[%emt 0:03:04]} (18... Bxc3 $6 19. bxc3 Rxe4 20. Rxe4 fxe4 21. Nd2 $11) 19. Rxe4 {[%emt 0:04:44]} Bf5 {[%emt 0:00:42]} ({Better is} 19... b5 $17) 20. Rxe8+ $11 {[%emt 0:05:17]} Qxe8 {[%emt 0:00:21]} 21. Nb5 {[%emt 0:08:48] Prevents Nc7.} (21. Qb3 $11 {is more appropriate.}) 21... Bd7 {[%emt 0:02:17]} 22. Qb3 {[%emt 0:02:32]} Qe4 {[%emt 0:11:19][%cal Oc5c4]} 23. Kf2 {[%emt 0:07:54]} Re8 {[%emt 0:16:10]} (23... Bxb5 $17 24. Bxb5 Nc7) 24. Bd2 {[%emt 0:08:47]} c4 {[%emt 0:09:58]} 25. Qxc4 {[%emt 0:01:19]} Qxc4 {[%emt 0:00:38]} ({Don't play} 25... Bxb2 26. Qxe4 (26. Re1 Qxc4 27. Rxe8+ Bxe8 $11) 26... Rxe4 27. Rb1 $16) 26. Bxc4 {[%emt 0:00:07]} Bxh3 {[%emt 0:00:30]} 27. Nxa7 {[%emt 0:04:47]} Nc5 {[%emt 0:00:56][%cal Ba6c5,Bc5e4,Be4g3,Bg3f5,Bf5e3][%mdl 32] [#] ...Ne4+ is the strong threat.} 28. Bb4 $1 {[%emt 0:02:06] Black should prevent Bxc5.} Ne4+ {[%emt 0:03:30]} 29. Kg1 {[%emt 0:00:30]} Ra8 {[%emt 0:02:45]} ({Less strong is} 29... Nxg3 30. Kh2 Nh5 31. Kxh3 $18) 30. Nb5 {[%emt 0:00:55] Strongly threatening Re1.} (30. Re1 $5 {[%cal Re1e4]} Rxa7 31. Rxe4 Bxb2 32. Nd4 $16) 30... Rc8 $132 {[%emt 0:05:29][%mdl 2048] Black puts up resistance} 31. Bd3 {[%emt 0:01:15]} Nxg3 {[%emt 0:01:19]} 32. Nxd6 {[%emt 0:02:59]} Nxd6 {[%emt 0:00:39]} 33. Bxd6 {[%emt 0:00:05]} Bf5 {[%emt 0:00:57]} (33... Rd8 $2 34. Be7 Ra8 35. d6 $18) 34. Bxf5 {[%emt 0:01:07]} Nxf5 {[%emt 0:00:39]} 35. Be5 {[%emt 0:00:06]} Rd8 {[%emt 0:00:30] Inhibits d6.} 36. Rd1 {[%emt 0:01:27]} Ne3 {[%emt 0:00:34][%csl LRd1,LRd5]} 37. Rd3 {[%emt 0:00:32]} Nxd5 {[%emt 0:00:02]} 38. Kf2 {[%emt 0:00:31] Weighted Error Value: White=0.16 (very precise) /Black=0.18 (very precise)} 1/2-1/2

[Event "Summer Prague Open-A 2022"]
[Site "Prague"]
[Date "2022.08.05"]
[Round "1.4"]
[White "Mirzoev, Azer"]
[Black "Elias, Jakub"]
[Result "1-0"]
[ECO "A48"]
[WhiteElo "2424"]
[BlackElo "1999"]
[Annotator "TA"]
[PlyCount "79"]
[EventDate "2022.08.05"]
[EventType "swiss"]
[EventCountry "CZE"]
[SourceTitle "playchess.com"]
[Source "ChessBase"]
[SourceQuality "1"]
[TimeControl "40/5400+30:1800+30"]

{[%evp 16,79,35,27,19,18,23,19,54,57,87,13,45,0,8,-24,18,-3,31,-12,132,56,137,72,87,79,96,104,110,75,108,59,337,339,341,189,224,235,235,208,242,227,241,168,181,170,285,283,364,262,756,771,891,897,910,887,894,633,790,789,1086,802,2813,880,29996,29997]} 1. d4 {[%emt 0:01:14]} Nf6 {[%emt 0:00:38]} 2. Nf3 {[%emt 0:00:08]} g6 {[%emt 0:00:32]} 3. Nbd2 {[%emt 0:00:21]} Bg7 {[%emt 0:01:19]} 4. e4 {[%emt 0:00:07]} d6 {[%emt 0:00:17]} 5. c3 {[%emt 0:00:08]} O-O {[%emt 0:00:28]} 6. Bd3 {[%emt 0:00:06]} Nbd7 {[%emt 0:00:58]} 7. O-O {[%emt 0:00:08]} e5 {[%emt 0:00:50]} 8. Re1 {[%emt 0:00:08]} b6 {[%emt 0:01:44]} 9. a4 {[%emt 0:00:14]} a5 {[%emt 0:00:59] B07: Pirc Defence: Miscellaneous Systems.} 10. Bb5 {[%emt 0:01:01]} Bb7 {[%emt 0:01:34]} 11. d5 {[%emt 0:00:10] [#]} Nh5 $146 {[%emt 0:03:33] The position is equal.} ({Predecessor:} 11... Qc8 12. Nc4 Nc5 13. Nfd2 Nh5 14. b4 Nd3 15. Nxd6 cxd6 16. Bxd3 Qxc3 17. Ra3 Qc7 18. bxa5 bxa5 {1-0 (48) Gavrilescu,D (2477)-Aizenberg,B (2309) Reykjavik 2021}) 12. Nc4 {[%emt 0:02:33]} h6 {[%emt 0:05:45]} 13. Nfd2 {[%emt 0:09:55] White is more active.} (13. b4 $16) 13... Nf4 {[%emt 0:04:07]} 14. Nf1 {[%emt 0:01:16]} f5 {[%emt 0:11:53]} 15. f3 {[%emt 0:33:37]} Rf7 {[%emt 0:11:38]} 16. Be3 {[%emt 0:01:08]} Qf6 {[%emt 0:04:13]} 17. b4 {[%emt 0:02:09]} Bf8 {[%emt 0:07:50]} (17... Qg5 $11 18. g3 Nh3+ 19. Kg2 Qh5 20. bxa5 Nf6) 18. Ra2 {[%emt 0:04:41]} (18. Bc6 $16 Rb8 19. Bxb7 (19. bxa5 Ba6 $16) 19... Rxb7 20. bxa5) 18... Rg7 {[%emt 0:07:29] [#]} (18... axb4 $14 19. cxb4 fxe4 20. fxe4 Qh4) 19. Rb2 {[%emt 0:01:26]} ({White should try} 19. bxa5 $1 fxe4 20. fxe4 (20. axb6 exf3 21. Bxf4 exf4 $11)) 19... axb4 {[%emt 0:04:18]} 20. cxb4 {[%emt 0:00:07]} Ba6 {[%emt 0:02:59]} 21. Bxa6 {[%emt 0:01:57]} Rxa6 {[%emt 0:00:08]} 22. a5 {[%emt 0:00:41]} h5 {[%emt 0:06:50]} 23. Rc2 {[%emt 0:02:53]} (23. b5 $16 Ra8 24. a6 (24. axb6 cxb6 25. g3 g5 $14)) 23... g5 $2 {[%emt 0:02:32][%mdl 8192] This move loses the game for Black.} ({Black should play} 23... bxa5 $14 24. Nxa5 (24. bxa5 h4 $14) 24... Nb6) 24. Ng3 $18 {[%emt 0:01:06]} fxe4 {[%emt 0:02:09]} 25. fxe4 {[%emt 0:00:08]} ({Not} 25. Nxe4 Qh6 26. b5 Ra8 $16) (25. Bxf4 $142 exf4 26. Nxh5) 25... Qg6 {[%emt 0:02:16]} 26. Nf5 {[%emt 0:00:30]} Rf7 {[%emt 0:01:18]} 27. b5 {[%emt 0:00:46]} Ra8 {[%emt 0:01:10]} 28. axb6 {[%emt 0:01:30]} Nxb6 {[%emt 0:00:59]} 29. Nxb6 {[%emt 0:02:57]} cxb6 {[%emt 0:00:08]} 30. Qd2 {[%emt 0:16:43]} Rfa7 {[%emt 0:07:08]} (30... Ra4 {keeps fighting.}) 31. Bxb6 {[%emt 0:03:58]} Ra1 {[%emt 0:01:06]} 32. Bf2 {[%emt 0:02:57]} R1a3 $2 {[%emt 0:00:53]} (32... Qe8 33. g3 Nh3+ 34. Kg2 g4) 33. b6 {[%emt 0:00:56]} Rb8 {[%emt 0:01:27]} 34. Qb4 {[%emt 0:02:11]} Ra6 {[%emt 0:01:48]} 35. Qb5 {[%emt 0:00:30]} Ra3 {[%emt 0:00:11]} 36. Rb1 {[%emt 0:00:21] [#] Strongly threatening b7.} Nd3 {[%emt 0:00:27]} 37. Be3 {[%emt 0:00:46]} h4 {[%emt 0:02:19]} 38. Qd7 {[%emt 0:01:59] Hoping for Rc8.} g4 {[%emt 0:00:45]} 39. Qe6+ {[%emt 0:00:38]} (39. Rc8 $142 Rxc8 40. Qxc8) 39... Kh7 {[%emt 0:00:27]} 40. Rc7+ {[%emt 0:00:20] Weighted Error Value: White=0.45/Black=0.83} 1-0

[Event "Summer Prague Open-A 2022"]
[Site "Prague"]
[Date "2022.08.05"]
[Round "1.5"]
[White "Bilunov, Denis B."]
[Black "Cernousek, Lukas"]
[Result "0-1"]
[ECO "B24"]
[WhiteElo "1977"]
[BlackElo "2429"]
[Annotator "TA"]
[PlyCount "108"]
[EventDate "2022.08.05"]
[EventType "swiss"]
[EventCountry "CZE"]
[SourceTitle "playchess.com"]
[Source "ChessBase"]
[SourceQuality "1"]
[TimeControl "40/5400+30:1800+30"]

{[%evp 17,108,0,14,2,7,8,0,-10,6,-17,-12,-15,2,-20,-14,-30,-25,-22,10,0,0,-33,-12,-46,-45,-47,-40,-42,-44,-123,-125,-136,-86,-90,-78,-169,-64,-55,-35,-39,-8,-78,-77,-86,-76,-75,-77,-84,-91,-95,-61,-61,-61,-79,-68,-86,-63,-97,-97,-129,-129,-191,-127,-308,-191,-191,-191,-347,-340,-604,-191,-194,-202,-589,-530,-977,-988,-1164,-926,-8012,-6430,-29970,-29971,-29971,-29972,-29972,-29970,-29972,-29973,-29975,-29976,-29966,-29967]} 1. e4 {[%emt 0:00:03]} c5 {[%emt 0:02:14]} 2. Nc3 {[%emt 0:00:07]} Nc6 {[%emt 0:01:04]} 3. g3 {[%emt 0:00:16]} g6 {[%emt 0:00:18]} 4. Bg2 {[%emt 0:00:05]} Bg7 {[%emt 0:00:05]} 5. Nge2 {[%emt 0:00:06]} d6 {[%emt 0:06:36]} 6. O-O {[%emt 0:00:35]} e6 {[%emt 0:07:15]} 7. d3 {[%emt 0:01:26]} Nge7 {[%emt 0:00:14]} 8. Bg5 {[%emt 0:00:07]} h6 {[%emt 0:03:52]} 9. Be3 {[%emt 0:00:05]} Nd4 {[%emt 0:00:23]} 10. Rb1 {[%emt 0:00:25] B25: Closed Sicilian: 3 g3, lines without early Be3.} Nec6 {[%emt 0:04:30]} 11. a3 {[%emt 0:01:29] [#]} b6 $146 {[%emt 0:21:54]} ({Predecessor:} 11... a6 12. b4 b5 13. e5 d5 14. f4 Bf8 15. Qd2 Bb7 16. bxc5 Bxc5 17. Nxd4 Bxd4 18. Bxd4 Nxd4 {½-½ (35) Predojevic,B (2621)-Donchenko,A (2650) Germany 2019}) 12. Na2 {[%emt 0:03:00] The position is equal.} Bb7 {[%emt 0:13:27]} 13. c3 {[%emt 0:02:54]} Nxe2+ {[%emt 0:01:09]} 14. Qxe2 {[%emt 0:00:05]} O-O {[%emt 0:01:05]} 15. Qc2 {[%emt 0:03:04]} Rc8 {[%emt 0:06:05]} 16. Rbd1 {[%emt 0:01:52]} Kh7 {[%emt 0:02:14]} 17. Nc1 {[%emt 0:00:50]} b5 {[%emt 0:03:03][%cal Bb6b5,Bb5b4][%mdl 32]} 18. Ne2 {[%emt 0:00:26]} a5 {[%emt 0:01:02][%cal Oc6d4]} 19. Qb1 {[%emt 0:05:08]} b4 {[%emt 0:01:03]} 20. d4 {[%emt 0:01:12]} Ba6 {[%emt 0:09:21]} 21. Rfe1 {[%emt 0:01:13]} Qb6 {[%emt 0:02:09]} 22. dxc5 {[%emt 0:40:50]} dxc5 {[%emt 0:00:01]} 23. cxb4 {[%emt 0:00:34]} (23. axb4 $15 axb4 24. f4) 23... axb4 $17 {[%emt 0:00:07]} 24. Nf4 {[%emt 0:01:13]} Ne5 {[%emt 0:08:17]} ({Better is} 24... Rfd8 25. h4 Kg8) 25. axb4 {[%emt 0:06:13]} Qxb4 {[%emt 0:00:10]} 26. Qc2 {[%emt 0:00:18]} (26. Qa1 $17 Bc4 27. Bd2) 26... Rfd8 {[%emt 0:03:22]} (26... Bb5 $19 {Threatens to win with ...Ba4.} 27. Rc1 Ba4) 27. Bd2 $1 $15 {[%emt 0:03:50]} Qc4 {[%emt 0:01:37]} 28. Bc3 {[%emt 0:00:22]} Bb5 {[%emt 0:00:11]} 29. b3 {[%emt 0:01:15] [#]} (29. Ra1 $11) 29... Nf3+ $1 $17 {[%emt 0:00:09]} 30. Bxf3 {[%emt 0:00:08]} Qxc3 {[%emt 0:00:02]} 31. Qxc3 {[%emt 0:01:40]} Bxc3 {[%emt 0:00:01] A strong pair of Bishops.} 32. Rxd8 {[%emt 0:00:33]} Rxd8 {[%emt 0:00:00]} 33. Rd1 {[%emt 0:00:14]} Rxd1+ {[%emt 0:01:57]} 34. Bxd1 {[%emt 0:00:05][%mdl 4096] Endgame KBB-KBN} g5 {[%emt 0:00:27]} 35. Ne2 {[%emt 0:01:36]} Bd2 {[%emt 0:00:21]} 36. f3 {[%emt 0:02:10]} Kg6 {[%emt 0:02:02]} 37. Kf2 {[%emt 0:00:16]} Bd3 {[%emt 0:00:24]} 38. g4 {[%emt 0:01:04]} Kf6 {[%emt 0:00:25] Black is more active.} 39. Ng3 {[%emt 0:02:28] [#]} (39. h3 $17) 39... Ke5 {[%emt 0:00:04]} ({Black should play} 39... Bf4 $1 $19 40. Be2 Bc2) 40. Be2 $2 {[%emt 0:00:12] Loses the game.} (40. h3 $17 {was called for.}) 40... Bc2 {[%emt 0:01:06]} 41. Bc4 {[%emt 0:30:06]} Bf4 {[%emt 0:06:14]} 42. Ke2 $2 {[%emt 0:00:00]} (42. Ne2) 42... Kd4 $19 {[%emt 0:11:40] ...Kc3 is the strong threat.} 43. Nh5 $2 {[%emt 0:00:00]} (43. e5) 43... Bxh2 $2 {[%emt 0:07:47]} (43... Kc3 44. Nxf4 gxf4) 44. Kd2 {[%emt 0:00:00]} Bb1 {[%emt 0:00:10] aiming for ...Bf4+.} 45. Bb5 $2 {[%emt 0:00:00]} (45. Nf6) 45... Bf4+ {[%emt 0:03:22]} 46. Nxf4 {[%emt 0:00:00]} gxf4 {[%emt 0:00:11] KB-KB} 47. Bc4 {[%emt 0:00:00]} f5 {[%emt 0:00:28]} 48. exf5 {[%emt 0:00:00]} exf5 {[%emt 0:00:09]} 49. Be6 {[%emt 0:00:00]} fxg4 {[%emt 0:01:22] Black mates.} 50. Bxg4 {[%emt 0:00:00]} Bg6 {[%emt 0:00:13]} 51. Be6 {[%emt 0:00:00]} Bd3 {[%emt 0:02:42]} 52. Bf7 {[%emt 0:00:00]} Bb5 {[%emt 0:00:06]} 53. Be6 {[%emt 0:00:00]} Bc6 {[%emt 0:00:07]} 54. Ke2 {[%emt 0:00:00]} Bd5 {[%emt 0:00:12] Weighted Error Value: White=0.73/Black=0.25 (precise)} 0-1

[Event "Summer Prague Open-A 2022"]
[Site "Prague"]
[Date "2022.08.05"]
[Round "1.6"]
[White "Lalic, Bogdan"]
[Black "Olsen, Aage Dalstrup"]
[Result "1-0"]
[ECO "D35"]
[WhiteElo "2412"]
[BlackElo "1977"]
[Annotator "TA"]
[PlyCount "57"]
[EventDate "2022.08.05"]
[EventType "swiss"]
[EventCountry "CZE"]
[SourceTitle "playchess.com"]
[Source "ChessBase"]
[SourceQuality "1"]
[TimeControl "40/5400+30:1800+30"]

{[%evp 15,57,20,9,-3,15,13,11,2,22,13,5,-23,-21,-16,0,-47,-17,-28,0,-15,0,0,-6,-4,0,0,36,40,33,52,40,48,238,220,375,369,364,377,517,516,505,501,462,445]} 1. d4 {[%emt 0:05:37]} Nf6 {[%emt 0:00:06]} 2. c4 {[%emt 0:00:10]} e6 {[%emt 0:00:18]} 3. Nc3 {[%emt 0:00:11]} d5 {[%emt 0:00:33]} 4. cxd5 {[%emt 0:00:11]} exd5 {[%emt 0:00:10]} 5. Bg5 {[%emt 0:00:09]} c6 {[%emt 0:00:16]} 6. e3 {[%emt 0:00:08]} h6 {[%emt 0:00:26]} 7. Bh4 {[%emt 0:00:17]} Be7 {[%emt 0:00:45]} 8. Bd3 {[%emt 0:00:38]} O-O {[%emt 0:04:56]} 9. h3 {[%emt 0:00:59] D35: Queen's Gambit Declined: Exchange Variation.} Nbd7 {[%emt 0:00:50]} 10. Nge2 {[%emt 0:00:18]} Ne4 {[%emt 0:01:47] Threatens to win with ...Nxc3.} 11. Bxe7 {[%emt 0:00:21] The position is equal.} Qxe7 {[%emt 0:00:20]} 12. Bxe4 {[%emt 0:00:13]} dxe4 {[%emt 0:00:17] [#]} 13. g4 $146 {[%emt 0:00:26]} ({Predecessor:} 13. Ng3 f5 14. O-O Nf6 15. f3 Nd5 16. Nxd5 cxd5 17. fxe4 dxe4 18. Rc1 g6 19. Rc5 {½-½ (29) Nemeth,J (2023)-Lang,G (1950) Hungary 2017}) 13... Nf6 {[%emt 0:03:49]} 14. Qc2 {[%emt 0:02:29]} Re8 {[%emt 0:01:16]} 15. Ng3 {[%emt 0:03:17]} (15. O-O-O $11) 15... g6 {[%emt 0:02:44]} (15... b6 $5 {[%cal Rc8a6]}) 16. O-O-O {[%emt 0:04:02]} Bd7 {[%emt 0:01:30]} 17. Kb1 {[%emt 0:00:29]} b5 {[%emt 0:02:31]} 18. Rc1 {[%emt 0:04:29]} Rac8 {[%emt 0:03:32]} 19. Nce2 {[%emt 0:06:15]} Nd5 {[%emt 0:04:10][%cal Bf6d5,Bd5b4,Bb4d3][%mdl 32]} 20. Qd2 {[%emt 0:00:06]} Nb4 {[%emt 0:02:46]} 21. Nc3 {[%emt 0:04:08]} Be6 $1 {[%emt 0:06:42]} 22. a3 {[%emt 0:04:31]} Nd3 {[%emt 0:00:40]} 23. Rc2 {[%emt 0:10:46]} Bb3 $2 {[%emt 0:04:37] Loses the game.} ({Black should try} 23... f5 $14) 24. Ncxe4 $18 {[%emt 0:02:05]} Bxc2+ {[%emt 0:01:17]} (24... c5) 25. Qxc2 {[%emt 0:00:19]} Nxb2 {[%emt 0:01:34]} 26. Qxb2 {[%emt 0:01:20]} f5 {[%emt 0:02:08]} 27. gxf5 {[%emt 0:01:04] White is clearly winning.} gxf5 {[%emt 0:00:06] [#]} 28. Rg1 $1 {[%emt 0:01:08]} Kh7 {[%emt 0:00:51] [#]} 29. d5 $1 {[%emt 0:13:17] Weighted Error Value: White=0.05 (flawless) /Black=0.38} 1-0